Cogmind - Beta 14 @@@ ROGUE MODE // 2024.11.02 @ 20:33:16 Player: N.W.L Result: Escaped! Performance ------------- Evolutions (9) 4500 Regions Visited (27) 5400 Robots Destroyed (468) 2340 Value Destroyed (23734) 23734 Prototype IDs (67) 1340 Alien Tech Used (0) 0 Bonus (24003) 24003 TOTAL SCORE: 61317 Bonus ------- Triggered High Security 1000 High Alert Combat Kills 11917 Follower Combat Kills 2793 Network Hubs Disabled 200 Delivered SUBCON Basin 2000 Registered with UFD 300 Met Warlord at Base 500 MAIN.C Attacked Warlord 500 Warlord Defense Kills 414 Built Enhanced Grunts 300 A7 Reached Mainframe 300 Met R17 at Cetus 500 Met R17 at Research 2000 Scanned by Researcher 500 Win 3000 Friendly Fire -2221 Cogmind --------- Core Integrity 639/1600 Matter 202/300 Energy 84/100 System Corruption 17% Temperature Critical (1763) Movement Core (50) Location To Epsilon Eridani Parts ------- > --- POWER (3) -------- (None) > --- PROPULSION (6) --- (None) > --- UTILITY (12) ----- Advanced Cryofiber Web > --- WEAPON (4) ------- (None) > --- INVENTORY (5) ---- Armored Heavy Treads Biometal Heavy Treads Peak State ------------ > --- POWER ------------ Quantum Reactor Quantum Reactor Light Quantum Reactor > --- PROPULSION ------- Biometal Heavy Treads Biometal Heavy Treads Advanced Heavy Siege Treads > --- UTILITY ---------- Advanced Cryofiber Web Experimental Heat Sink Experimental Heat Sink Cargo Storage Unit Spectral Analyzer Quantum Capacitor SHELL Armor Thermal Barrier > --- WEAPON ----------- Compact HERF Cannon Enhanced Nova Cannon Improved Potential Cannon > --- INVENTORY -------- Armored Heavy Treads Biometal Heavy Treads Advanced Heavy Siege Treads Advanced Coolant Injector Experimental Energy Well Experimental Energy Well Long-range Terrain Scanner Experimental Target Analyzer Precision Energy Filter Advanced Particle Charger Quantum Capacitor Improved Weapon Shielding Improved Weapon Shielding Heavy Regenerative Plating Experimental Focal Shield Improved Energy Mantle High-powered Tractor Beam Dimensional Node Initializer Advanced Variable Charge Gun Enhanced Nova Cannon Compact Mass Driver Fusion Bomb Launcher Tactical Quantum Warhead [Rating: 232] Favorites ----------- Power Quantum Reactor Engine Improved Ion Engine Power Core Improved Fusion Compressor Reactor Quantum Reactor Propulsion Improved Treads Treads Improved Treads Leg Aluminum Leg Wheel Subdweller Monowheel Hover Unit Combat Antigrav System Flight Unit Nuclear Pulse Thruster Utility Spectral Analyzer Device Quantum Capacitor Storage Humpback Processor Spectral Analyzer Hackware Advanced Hacking Suite Protection SHELL Armor Weapon Advanced Plasma Cannon Energy Gun Wave Gun Energy Cannon Advanced Plasma Cannon Ballistic Gun Subdweller Machine Gun Ballistic Cannon Compact Mass Driver Launcher Mini Grenade Launcher Special Weapon CPS Tube Impact Weapon Flail Slashing Weapon Axe Piercing Weapon Lance Build | -11 -10 -10 -9 -9 -6 -6 -6 -6 -5 -5 -5 -5 -5 -5 -5 -5 -4 -4 -4 -4 -3 -3 -3 -3 -2 -2 -1 ------- Run | Yrd Mat Sub Rec Scr Fac Low Low Zio Pro Fac Was Fac Ext Cet Arc Hub Fac Upp Upp War Pro Res Arm Lab Res Tes Acc Slots Evolved 18 | . . . . . 8 . . . . 2 . . . . . . 2 . . . . 2 . . 2 . 2 Power 2 | . . . . . . . . . . . . . . . . . 1 . . . . . . . . . 1 Propulsion 4 | . . . . . 1 . . . . . . . . . . . 1 . . . . . . . 2 . . Utility 10 | . . . . . 6 . . . . 1 . . . . . . . . . . . 2 . . . . 1 Weapon 2 | . . . . . 1 . . . . 1 . . . . . . . . . . . . . . . . . Parts Attached 577 | . 5 23 4 15 51 . . 6 4 7 10 18 21 15 12 8 14 5 6 17 17 30 113 . 34 49 93 Power 30 | . . . 1 2 4 . . . . . . 1 1 2 . . 1 . . . . 2 6 . . 2 8 Engine 4 | . . . 1 2 1 . . . . . . . . . . . . . . . . . . . . . . Core 6 | . . . . . 3 . . . . . . 1 1 . . . . . . . . . . . . . 1 Reactor 20 | . . . . . . . . . . . . . . 2 . . 1 . . . . 2 6 . . 2 7 Propulsion 63 | . 2 6 3 3 11 . . . 1 . 5 2 3 2 2 . 2 . . 1 . . 4 . 5 6 5 Treads 49 | . 2 . 3 2 10 . . . 1 . 2 . 3 2 2 . 2 . . 1 . . 4 . 5 5 5 Leg . | . . . . . . . . . . . . . . . . . . . . . . . . . . . . Wheel 7 | . . 6 . . 1 . . . . . . . . . . . . . . . . . . . . . . Hover 4 | . . . . . . . . . . . 2 2 . . . . . . . . . . . . . . . Flight 3 | . . . . 1 . . . . . . 1 . . . . . . . . . . . . . . 1 . Utility 329 | . 2 5 . 4 14 . . 2 . 6 4 9 8 5 6 7 10 4 6 9 17 24 76 . 19 26 66 Device 243 | . . 1 . 2 6 . . 1 . . 3 5 3 3 5 2 9 4 4 7 15 16 61 . 16 21 59 Storage 16 | . 1 1 . 1 1 . . . . 1 . . 1 . . . . . 1 . . 1 4 . . 2 2 Processor 17 | . 1 . . . 4 . . 1 . 5 1 1 . . . . . . . 1 . 1 1 . . . 1 Hackware 13 | . . . . . 1 . . . . . . 1 2 . 1 3 . . . . . 4 . . . . 1 Protection 40 | . . 3 . 1 2 . . . . . . 2 2 2 . 2 1 . 1 1 2 2 10 . 3 3 3 Artifact . | . . . . . . . . . . . . . . . . . . . . . . . . . . . . Weapon 155 | . 1 12 . 6 22 . . 4 3 1 1 6 9 6 4 1 1 1 . 7 . 4 27 . 10 15 14 Energy Gun 47 | . . 3 . 1 4 . . . 1 1 1 . 7 4 2 . . 1 . 1 . 2 10 . 3 5 1 Energy Cannon 44 | . . 1 . 1 13 . . 2 . . . 1 . . 1 1 1 . . . . 1 5 . 3 6 8 Ballistic Gun 14 | . . 6 . 1 . . . . . . . . . 2 1 . . . . 1 . 1 1 . 1 . . Ballistic Cannon 6 | . 1 1 . . . . . . . . . . . . . . . . . . . . . . . 2 2 Launcher 21 | . . 1 . 1 4 . . . 1 . . 3 2 . . . . . . . . . 2 . 2 2 3 Special Weapon 15 | . . . . 2 . . . . . . . 1 . . . . . . . 5 . . 7 . . . . Impact Weapon 3 | . . . . . . . . . . . . . . . . . . . . . . . 2 . 1 . . Slashing Weapon 3 | . . . . . 1 . . 2 . . . . . . . . . . . . . . . . . . . Piercing Weapon 2 | . . . . . . . . . 1 . . 1 . . . . . . . . . . . . . . . Special Melee Weapon . | . . . . . . . . . . . . . . . . . . . . . . . . . . . . Unidentified Prototypes 42 | . . . . . . . . 1 . . 1 1 . 2 1 . 1 . . 5 . 7 6 . 2 11 4 Corrupted Parts 8 | . . . . . . . . . . . . . . 3 1 . . . . 2 . . . . . 1 1 System Corruption 49 | . . . . . . . . . . . . . . 17 13 . . . . 6 . . . . . 3 10 Parts Lost 63 | . . 8 . . 18 . . . 3 . 2 2 4 1 . 4 1 . . . . 1 10 . 1 2 6 Power 8 | . . 1 . . 2 . . . 1 . . . . . . . . . . . . . 1 . . 1 2 Propulsion 18 | . . 3 . . 6 . . . 1 . 1 . 1 1 . 1 . . . . . . 1 . . . 3 Utility 19 | . . 2 . . 3 . . . . . 1 . 2 . . 3 . . . . . 1 4 . 1 1 1 Weapon 18 | . . 2 . . 7 . . . 1 . . 2 1 . . . 1 . . . . . 4 . . . . Highest Loss Streak 5 | . . 4 . . 5 . . . 3 . 2 2 2 1 . 4 1 . . . . 1 3 . 1 1 1 To Critical Strikes 1 | . . . . . . . . . . . . . . 1 . . . . . . . . . . . . . Average Slot Usage (%) 79 | . 96 80 77 83 76 80 80 80 78 42 56 78 89 95 90 93 83 89 88 76 83 75 74 57 72 69 67 Engine 4 | . 14 11 13 13 3 6 6 6 4 . 2 4 . . . . . . . . . . . . . . . Reactor 4 | . . . . . . . . . . . . . . 3 5 5 9 10 10 10 10 9 7 4 4 7 8 Treads 12 | . 27 3 14 25 15 . . . . 5 . . 8 12 12 10 10 15 15 10 10 9 8 9 13 12 11 Wheel 2 | . . 20 6 . . 6 6 6 5 . . . . . . . . . . . . . . . . . . Device 13 | . . 1 . 1 11 20 20 20 18 5 5 18 14 21 19 13 17 21 20 11 20 24 24 9 23 15 20 Storage 6 | . 14 4 14 12 3 6 6 6 5 . 1 . . 5 5 5 5 5 5 5 5 4 4 4 4 4 4 Processor 6 | . 10 . . . 15 20 20 20 25 24 34 18 11 11 11 11 5 5 5 5 10 4 4 4 4 4 3 Hackware 3 | . . . . . 1 . . . . . . 2 11 6 9 20 10 10 10 9 5 7 4 4 4 3 . Protection 2 | . . 8 . 1 2 . . . . . . 5 10 5 . . 2 . . 4 . . 1 4 2 3 3 Energy Gun 5 | . 14 14 . . 3 6 6 5 2 5 3 1 20 22 12 17 12 10 10 1 . . 5 9 5 6 2 Energy Cannon 7 | . . . 14 12 12 13 13 7 8 . . 1 . . . 4 7 10 10 10 10 5 4 . 5 8 7 Ballistic Gun 2 | . 13 8 14 8 . . . . . . . . . . 9 . . . . . . . . . . . . Special Weapon 1 | . . . . 1 . . . . . . . . . . . . . . . 5 10 5 . . . . . Peak Build Rating 232 | . 8 27 35 25 73 69 69 71 75 78 86 100 99 107 115 122 137 133 132 157 154 209 187 165 201 217 232 Average Rating 105 | . 7 14 33 20 60 69 69 67 68 68 61 88 90 102 107 115 128 131 125 135 145 148 163 165 193 206 213 On Entrance 95 | 6 6 8 27 18 25 69 69 69 71 45 78 83 87 99 96 115 103 133 132 132 154 145 170 165 165 193 207 Naked Turns 3 | . . . . 2 . . . . . . . . . . . . . . . . . . . . . . 1 Heaviest Build 318 | 11 28 212 219 219 239 56 56 56 43 23 27 44 71 79 69 80 111 111 293 293 284 312 318 305 304 262 275 Greatest Support 250 | 20 40 40 46 46 69 10 10 10 10 70 70 36 100 100 108 108 133 133 133 140 140 160 140 140 235 235 250 Greatest Overweight (x) 72 | . . 10 72 4 18 5 5 5 4 6 1 1 2 1 . . 1 1 3 3 2 2 3 2 1 1 1 Average Overweight (x) 1 | . . 2 9 2 1 5 5 4 2 1 . . . . . . . . 2 1 1 1 1 2 . . . Largest Inventory Capacity 35 | . 15 35 35 35 35 5 5 5 5 5 5 5 15 15 15 15 15 15 35 35 35 35 35 30 30 30 30 Average Capacity 24 | . 8 12 35 31 15 5 5 5 5 5 5 5 5 15 15 15 15 15 34 35 35 35 32 30 30 30 29 Most Carried 35 | . 7 21 35 35 35 5 5 5 5 5 5 5 15 15 15 15 15 15 18 35 35 35 35 30 30 30 30 Average Carried 21 | . 4 8 33 28 14 5 5 4 4 3 4 4 5 14 13 14 14 14 17 28 34 30 32 30 28 29 27 Final Capacity 35 | 8 15 35 35 35 5 5 5 5 5 5 5 5 15 15 15 15 15 15 35 35 35 35 30 30 30 30 30 Final Carried 35 | 6 7 21 21 34 5 5 5 5 5 4 5 5 15 14 15 14 15 15 17 35 35 35 30 30 29 30 29 Class Distribution -------------------- 25% | Hauler-Mutant 15% | Hauler-Skirmisher 14% | Hauler-Gunner 11% | Mutant 6% | Gunner 5% | Hauler-Tank 4% | Scavenger-Skirmisher 3% | Subdweller-Mutant 3% | Commander-Skirmisher 3% | Hauler-Assassin Dominant Class ---------------- Mutant | -10/Materials Subdweller-Mutant | -10/Subcaves Hauler-Mutant | -9/Recycling Hauler-Mutant | -9/Scraptown Gunner | -6/Factory Gunner | -6/Lower Caves Gunner | -6/Lower Caves Mutant | -6/Zion Mutant | -5/Proximity Caves Gunner | -5/Factory Gunner | -5/Waste Mutant | -5/Factory Commander-Skirmisher | -5/Extension Commander-Skirmisher | -5/Cetus Scavenger-Skirmisher | -5/Archives Hacker-Skirmisher | -5/Hub_04(d) Scavenger-Gunner | -4/Factory Scavenger-Skirmisher | -4/Upper Caves Hauler-Skirmisher | -4/Upper Caves Hauler-Mutant | -4/Warlord Hauler-Skirmisher | -3/Proximity Caves Hauler-Skirmisher | -3/Research Hauler-Skirmisher | -3/Armory Hauler-Skirmisher | -3/Lab Hauler-Assassin | -2/Research Hauler-Gunner | -2/Testing Hauler-Gunner | -1/Access Resources | -11 -10 -10 -9 -9 -6 -6 -6 -6 -5 -5 -5 -5 -5 -5 -5 -5 -4 -4 -4 -4 -3 -3 -3 -3 -2 -2 -1 ----------- Run | Yrd Mat Sub Rec Scr Fac Low Low Zio Pro Fac Was Fac Ext Cet Arc Hub Fac Upp Upp War Pro Res Arm Lab Res Tes Acc Matter Collected 9523 | 200 70 387 42 155 1131 . 101 20 60 . 150 90 771 148 172 73 119 70 137 139 201 316 1310 . 424 506 2731 Remotely 1871 | . . . . . . . . . . . . . . . . . . . . . . . . . . . 1871 Salvage Created 25371 | . 146 342 98 . 2109 . . . 255 . 225 149 1258 296 378 118 389 52 251 167 217 507 4301 . 1422 2066 10625 Parts 1035 | . 9 21 4 . 106 . . . 7 . 2 14 51 9 19 7 19 3 9 4 7 23 212 . 64 105 340 Haulers Intercepted 10 | . 1 . . . 1 . . . . . . . 1 . . . . . . . . 2 . . . 2 3 Recyclers Shooed 17 | . . . . . 2 . . . . . . . . . . 1 1 . . . . 6 . . 1 . 6 Parts Field Recycled . | . . . . . . . . . . . . . . . . . . . . . . . . . . . . Retrieved Matter . | . . . . . . . . . . . . . . . . . . . . . . . . . . . . Parts Self-Destructed 29 | . . 7 . . . . . 2 3 . . . . . . . . 3 9 . 5 . . . . . . Prevented 8 | . . . . . . . . . 3 . . . . . . . . . . . 5 . . . . . . Kills | -11 -10 -10 -9 -9 -6 -6 -6 -6 -5 -5 -5 -5 -5 -5 -5 -5 -4 -4 -4 -4 -3 -3 -3 -3 -2 -2 -1 ------- Run | Yrd Mat Sub Rec Scr Fac Low Low Zio Pro Fac Was Fac Ext Cet Arc Hub Fac Upp Upp War Pro Res Arm Lab Res Tes Acc Combat Hostiles Destroyed 357 | . 1 14 2 . 28 . . . 4 . 1 4 19 3 . 1 3 1 6 3 3 3 89 . 14 21 137 Melee 7 | . . . . . 2 . . . 1 . . 1 3 . . . . . . . . . . . . . . Guns 39 | . 1 5 . . 5 . . . . . 1 1 8 2 . 1 . . . . . 1 12 . 2 . . Cannons 145 | . . 7 2 . 7 . . . 1 . . . . . . . 3 1 6 3 3 . 31 . 6 16 59 AOE 112 | . . 2 . . 8 . . . . . . 2 7 . . . . . . . . . 34 . 2 . 57 Classes Destroyed 26 | . 4 2 1 . 8 . . . . . 1 1 2 . . . . . . . . . 2 . 2 . 3 Worker 19 | . . . . . 6 . . . . . . 1 . . . . . . . . . . . . 2 . 10 Builder 40 | . . . . . 2 . . . . . . 1 3 . . 2 . . . . . 1 . . 7 1 23 Tunneler 9 | . 1 . . . 3 . . . . . . . . . . . 1 . . . . . . . 1 . 3 Hauler 10 | . 1 . . . 1 . . . . . . . 1 . . . . . . . . 2 . . . 2 3 Recycler 23 | . . . . . 3 . . . . . . . 2 . . . 1 . . . . . . . 2 1 14 Carrier 6 | . . . . . . . . . . . . . . . . . . . . . . . . . . . 6 Mechanic 12 | . . . . . 2 . . . . . . . . . . . 1 . . . . . 4 . . . 5 Operator 14 | . . . . . . . . . . . . 1 1 . 9 . . . . . . . . . . 1 2 Watcher 23 | . 2 . . . 3 . . . . . . . 1 1 . . . . . . . . 6 . 3 2 5 Swarmer 33 | . . 3 . . . . . . . . . . 5 . . . . . 4 . . . 15 . . . 6 Saboteur 8 | . . . . . . . . . . . . . . . . . . . . . . . 1 . . . 7 Grunt 115 | . 1 . . . 12 . . . 2 . . 2 4 . . . . . . 3 1 2 35 . . 2 51 Brawler 14 | . . . . . 1 . . . . . . . 2 . . . . . . . . 1 1 . . . 9 Duelist 15 | . . . . . . . . . . . . . . . . . . . . . . . 2 . . . 13 Protector 6 | . . . . . 1 . . . . . . . . . . . . . . . . . 1 . . . 4 Sentry 22 | . . . 2 . 4 . . . . . . . 2 . . 1 1 . . . 1 . 5 . 2 2 2 Demolisher 1 | . . . . . . . . . . . . . 1 . . . . . . . . . . . . . . Specialist 6 | . . . . . . . . . . . . . 1 . . . . . . . . . 3 . 2 . . Hunter 38 | . . . . . 7 . . . 1 . . . 2 . . . . . 2 . 1 . 2 . 6 2 15 Programmer 77 | . . . . . 3 . . . 1 . . 2 2 . . . 2 1 . . . . 20 . 2 15 29 Heavy 1 | . . . . . . . . . . . . . . . . . . . . . . . . . 1 . . Compactor 1 | . . . . . . . . . . . 1 . . . . . . . . . . . . . . . . Armor Guard 4 | . . . . . . . . . . . . . . . . . . . . . . . 4 . . . . Cetus Guard 3 | . . . . . . . . . . . . . . 3 . . . . . . . . . . . . . Investigator 2 | . . . . . . . . . . . . . . . . . . . . . . . . . . . 2 Executioner 1 | . . . . . . . . . . . . . . . . . . . . . . . . . . . 1 Subdweller 11 | . . 11 . . . . . . . . . . . . . . . . . . . . . . . . . Scrapoid 1 | . . . . . . . . . . . . . . . . . . . . . . . . . 1 . . Thug 1 | . . . . . . . . . . . . . . . 1 . . . . . . . . . . . . Guerrilla 1 | . . . . . . . . . . . . . . 1 . . . . . . . . . . . . . Best Kill Streak 44 | . 2 4 1 . 10 . . . 2 . 1 4 6 3 6 1 3 1 4 3 1 2 15 . 12 5 44 Combat Bots Only 36 | . 1 4 1 . 4 . . . 2 . 1 2 5 3 . 1 3 1 4 3 1 2 14 . 6 5 36 Max Kills in Single Turn 8 | . 1 1 1 . 4 . . . 1 . 1 1 4 1 1 1 1 1 1 1 1 1 8 . 5 1 8 Gunslinging 1 | . . . . . . . . . . . . . 1 . . . . . . . . . . . . . . Exploded 8 | . . 1 . . 4 . . . . . . 1 3 . . . . . . . . . 8 . 2 . 7 Melee 1 | . . . . . 1 . . . 1 . . 1 1 . . . . . . . . . . . . . . Uniques/NPCs Destroyed 1 | . . . . . . . . . . . . . . . . . . . . . . 1 . . . . . Revision 17++ (-3/Research) Combat | -11 -10 -10 -9 -9 -6 -6 -6 -6 -5 -5 -5 -5 -5 -5 -5 -5 -4 -4 -4 -4 -3 -3 -3 -3 -2 -2 -1 -------- Run | Yrd Mat Sub Rec Scr Fac Low Low Zio Pro Fac Was Fac Ext Cet Arc Hub Fac Upp Upp War Pro Res Arm Lab Res Tes Acc Hostile Shots Fired 1958 | . 10 94 18 . 332 . . . 54 . 2 73 48 24 3 18 26 2 64 2 26 32 465 . 119 140 406 Missed 533 | . 5 20 3 . 120 . . . 13 . . 29 16 11 1 5 7 2 13 . 6 12 128 . 22 27 93 Damage Taken 27134 | . 54 1493 226 . 3411 . . . 416 . 69 987 755 355 103 958 313 . 521 59 287 218 6028 . 1941 2402 6538 Core 2858 | . 20 190 29 . 386 . . . 164 . 69 87 211 24 . 143 . . 18 . 28 19 332 . 95 82 961 Absorbed by Shields 4566 | . . . . . 123 . . . 168 . . . 109 87 . . 95 . 275 . 117 207 2290 . 276 . 819 Reduced by Siege Mode 1572 | . . . . . . . . . . . . . . 8 . . . . 20 . 19 . 499 . 279 251 496 Redirected to Shielding 26 | . . . . . . . . . . . . . . . . . . . . . . . . . . . 26 Ignored by Resistances 1746 | . . . . . . . . . . . . . . . . . . . . . 31 . 486 . 280 . 949 Regen/Repaired (Parts) 4004 | . . . . . . . . . . . 15 . . . . . . . . 574 . . . . . 916 2499 Core Remaining (%) 60 | 100 . . . 4 . . . . 35 . . . . . . 46 . . . . 96 . . 73 . 87 39 Volleys Fired 1545 | . 20 91 10 5 106 1 . . 7 2 2 8 34 22 40 45 41 11 41 18 45 73 354 . 89 146 334 Largest 4 | . 2 2 2 1 3 2 . . 2 1 1 1 4 4 4 4 1 1 1 1 1 2 1 . 1 2 1 Hottest 367 | . 70 120 110 20 204 150 . . 144 250 250 250 324 324 262 367 98 40 40 40 40 98 113 . 240 240 240 Shots Fired 1823 | . 39 140 20 5 151 2 . . 13 2 2 9 93 49 81 62 41 11 42 18 45 74 351 . 90 146 337 Gun 668 | . 38 96 10 . 46 . . . 3 2 2 1 85 49 81 24 . . . . . 18 167 . 32 5 9 Cannon 1079 | . 1 42 10 . 91 2 . . 10 . . 1 . . . 38 41 11 42 17 45 55 156 . 56 141 320 Launcher 52 | . . 2 . . 14 . . . . . . 7 8 . . . . . . . . . 11 . 2 . 8 Special 24 | . . . . 5 . . . . . . . . . . . . . . . 1 . 1 17 . . . . Kinetic 103 | . 20 59 10 . 10 . . . . . . . . . 3 . . . . . . . . . . 1 . Thermal 1165 | . 19 77 10 5 64 . . . . 2 2 2 85 29 76 62 41 11 42 17 45 55 145 . 59 117 200 Explosive 46 | . . . . . 4 . . . . . . 7 8 . . . . . . . . . 20 . . . 7 Electromagnetic 425 | . . 4 . . 73 2 . . 13 . . . . 20 2 . . . . . . 18 107 . 29 28 129 Entropic 79 | . . . . . . . . . . . . . . . . . . . . . . . 77 . 2 . . Robot Hit Streak 45 | . 6 17 14 . 32 9 . . 11 . 16 4 9 26 10 6 8 1 5 7 11 15 45 . 26 12 33 Robot Miss Streak 9 | . 2 5 2 . 8 . . . 2 . 1 1 6 2 3 3 3 . 1 2 2 3 9 . 3 2 3 Penetration Max 1 | . . . . . . . . . . . . . . . 1 . . . . . . . . . . . . Secondary Targets 7 | . . . . . 1 . . . . . . . 4 2 . . . . . . . . . . . . . Max Gunslinging Chain 2 | . . . . . 1 . . . . . . . 2 1 . . . . . . . . . . . . . Capacitor 867 | . . . . . . . . . . . . 1 . . . . 41 1 14 13 5 32 276 . 18 139 327 Shots Hit Robots 1077 | . 23 82 15 . 98 2 . . 11 . 2 9 59 43 48 15 18 1 22 9 14 33 221 . 53 75 224 Core Hits 753 | . 7 26 3 . 109 . . . 4 . 5 19 57 22 27 5 8 1 8 4 7 10 165 . 26 26 214 Critical Kills 8 | . . . . . . . . . . . . . . . . . 1 . . . . 1 1 . . 2 3 Critical Parts Destroyed 4 | . . . . . . . . . . . . . . . . . . . . . . . 4 . . . . Critical Strikes 38 | . 1 5 . . 1 . . . 1 . . . 2 3 5 . 1 . . . . 1 10 . . 3 5 Burn 13 | . 1 3 . . . . . . . . . . 2 2 5 . . . . . . . . . . . . Meltdown 8 | . . . . . . . . . . . . . . . . . 1 . . . . 1 1 . . 2 3 Destroy 1 | . . 1 . . . . . . . . . . . . . . . . . . . . . . . . . Blast 1 | . . 1 . . . . . . . . . . . . . . . . . . . . . . . . . Corrupt 5 | . . . . . . . . . . . . . . 1 . . . . . . . . 1 . . 1 2 Sever 5 | . . . . . 1 . . . . . . . . . . . . . . . . . 4 . . . . Impale 1 | . . . . . . . . . 1 . . . . . . . . . . . . . . . . . . Detonate 4 | . . . . . . . . . . . . . . . . . . . . . . . 4 . . . . Melee Attacks 56 | . . . . . 20 . . 1 3 . . 13 15 . . . . . . . . . 2 . 2 . . Impact 4 | . . . . . . . . . . . . . . . . . . . . . . . 2 . 2 . . Slashing 21 | . . . . . 20 . . 1 . . . . . . . . . . . . . . . . . . . Piercing 31 | . . . . . . . . . 3 . . 13 15 . . . . . . . . . . . . . . Sneak Attacks 2 | . . . . . . . . . . . . 1 . . . . . . . . . . . . 1 . . Combat Hostiles . | . . . . . . . . . . . . . . . . . . . . . . . . . . . . Follow-up Attacks . | . . . . . . . . . . . . . . . . . . . . . . . . . . . . Damage Inflicted 89819 | . 248 1633 364 . 5104 56 . . 420 . 356 1185 3506 1003 1235 453 684 52 757 325 497 1221 22357 . 5120 4333 38910 Guns 14709 | . 248 989 149 . 689 . . . 49 . 356 56 1298 1003 1235 408 . . . . . 320 7067 . 634 81 127 Cannons 33892 | . . 464 215 . 1680 56 . . 256 . . . . . . 34 665 52 757 325 497 901 3611 . 2101 4079 18199 Explosions 39469 | . . 180 . . 2411 . . . 81 . . 988 1837 . . . 19 . . . . . 10925 . 2307 160 20561 Melee 939 | . . . . . 324 . . . 34 . . 141 362 . . . . . . . . . . . 78 . . Ramming 56 | . . . . . . . . . . . . . 9 . . 11 . . . . . . . . . 13 23 Kinetic 2284 | . 86 966 149 . 979 . . . . . . . . . 104 . . . . . . . . . . . . Thermal 48754 | . 162 587 215 . 1484 . . . 81 . 356 56 1298 603 1106 442 665 52 757 325 497 901 3783 . 1418 3160 30806 Explosive 12352 | . . . . . 740 . . . . . . 988 1837 . . . . . . . . . 5263 . . . 3524 Electromagnetic 12200 | . . 80 . . 1577 56 . . 305 . . . . 400 25 . 19 . . . . 320 2384 . 1317 1160 4557 Impact 78 | . . . . . . . . . . . . . . . . . . . . . . . . . 78 . . Slashing 1078 | . . . . . 324 . . . . . . . . . . . . . . . . . 754 . . . . Piercing 537 | . . . . . . . . . 34 . . 141 362 . . . . . . . . . . . . . . Entropic 12480 | . . . . . . . . . . . . . . . . . . . . . . . 10173 . 2307 . . Highest Corruption 34 | . . . . . . . . . 1 . . 8 8 15 18 10 1 1 1 6 . 2 34 34 2 21 17 Average Corruption 8 | . . . . . . . . . 1 . . 7 7 10 8 6 1 1 1 1 . 2 14 34 1 13 11 Corruption Purged 43 | . . . . . . . . . . . . . 8 10 13 7 . . . . . . . . . 5 . Corruption Blocked . | . . . . . . . . . . . . . . . . . . . . . . . . . . . . Effects 481 | . . . . . . . . . 2 . . 4 51 3 18 16 3 9 14 1 . 10 141 2 5 92 110 Message Errors 118 | . . . . . . . . . 1 . . . 12 1 6 4 . 3 5 . . 2 34 . 1 25 24 Matter Fused 103 | . . . . . . . . . . . . . 14 1 4 3 . 5 2 . . 4 27 . 1 16 26 Heat Flow Errors 64 | . . . . . . . . . . . . 1 5 . 3 2 . 1 1 . . 2 20 . . 13 16 Energy Discharges 64 | . . . . . . . . . . . . 1 5 1 3 4 2 . 1 1 . . 23 1 . 13 9 Parts Rejected 8 | . . . . . . . . . . . . . 1 . . . . . . . . . 4 . . 1 2 Parts Fused 8 | . . . . . . . . . . . . . 1 . . . 1 . 1 . . . 1 . . 1 3 Data Loss (minor) 52 | . . . . . . . . . 1 . . 1 4 . 1 1 . . 1 . . 2 13 1 2 12 13 Data Loss (major) 15 | . . . . . . . . . . . . . . . 1 . . . 1 . . . 6 . . 2 5 Misfires 24 | . . . . . . . . . . . . 1 5 . . 2 . . 1 . . . 4 . 1 3 7 Alerts 7 | . . . . . . . . . . . . . 2 . . . . . 1 . . . 2 . . 1 1 Weapon Failures 18 | . . . . . . . . . . . . . 2 . . . . . . . . . 7 . . 5 4 Overload Shots 7 | . . . . . . . . . . . . . . . . . . . . . . . . . 4 2 1 Overflow Damage 7313 | . . 19 . . 165 . . . 4 . . 48 97 . . . 60 . 64 . . 14 446 . 230 276 5890 Projectiles 3874 | . . . . . 1 . . . . . . . . . . . 60 . 64 . . 14 174 . 137 276 3148 Explosions 3439 | . . 19 . . 164 . . . 4 . . 48 97 . . . . . . . . . 272 . 93 . 2742 Melee . | . . . . . . . . . . . . . . . . . . . . . . . . . . . . Knockbacks 5 | . . 4 . . . . . . . . . . . . . 1 . . . . . . . . . . . Impact 1 | . . . . . . . . . . . . . . . . 1 . . . . . . . . . . . Kinetic 4 | . . 4 . . . . . . . . . . . . . . . . . . . . . . . . . Secondary . | . . . . . . . . . . . . . . . . . . . . . . . . . . . . Self-Inflicted Damage 1123 | . . 49 . . 177 . . . . . . 107 . . . . 29 . . . . . 269 . 315 . 177 Shots 14 | . . 2 . . 2 . . . . . . 2 . . . . 1 . . . . . 3 . 2 . 2 Rammed 2 | . . . . . . . . . . . . . . . . 1 . . . . . . . . . 1 . Targets Rammed 3 | . . . . . . . . . . . . . 1 . . 1 . . . . . . . . . 1 . Kicked . | . . . . . . . . . . . . . . . . . . . . . . . . . . . . Crushed 1 | . . . . . . . . . . . . . 1 . . . . . . . . . . . . . . Highest Temperature 1763 | . 114 13 360 . 385 78 . . 276 88 116 207 341 374 143 190 336 100 55 . . 78 412 3 198 447 1763 Average Temperature 142 | . 31 10 151 . 109 41 . . 115 46 63 65 120 159 95 59 148 52 28 . . 41 95 3 95 154 288 Received Heat Transfer 2907 | . 30 126 81 . 666 . . . 48 . . 153 153 35 . 84 17 . . . 32 6 737 . 4 36 699 Effects 50 | . . . 2 . 2 . . . . . . . 5 1 . . . . . . . . 5 . . 3 32 Shutdowns 6 | . . . 1 . 1 . . . . . . . . . . . . . . . . . . . . 2 2 Energy Bleed 10 | . . . . . . . . . . . . . 1 1 . . . . . . . . . . . . 8 Interference 13 | . . . . . . . . . . . . . 4 . . . . . . . . . 5 . . . 4 Matter Decay 8 | . . . 1 . 1 . . . . . . . . . . . . . . . . . . . . . 6 Short Circuit 2 | . . . . . . . . . . . . . . . . . . . . . . . . . . . 2 Damage (minor) 4 | . . . . . . . . . . . . . . . . . . . . . . . . . . 1 3 Damage (major) 4 | . . . . . . . . . . . . . . . . . . . . . . . . . . . 4 Damage (core) 3 | . . . . . . . . . . . . . . . . . . . . . . . . . . . 3 Siege Activations 67 | . . . . . . . . . . . . . . 2 . . 1 . 2 1 3 1 19 . 6 10 22 Total Turns 1541 | . . . . . . . . . . . . . . 51 . . 14 . 40 8 22 22 281 . 114 132 857 Longest Duration 694 | . . . . . . . . . . . . . . 40 . . 14 . 28 8 12 22 71 . 70 22 694 Robots Corrupted 49 | . . . . . 6 . . . 2 . . . . 1 . . . . . . . 2 11 . 5 4 18 Combat Hostiles 42 | . . . . . 6 . . . 2 . . . . 1 . . . . . . . 2 11 . 4 3 13 Parts Fried 110 | . . . . . 14 . . . 2 . . . 1 1 . 1 . . . . 2 2 28 . 16 11 32 Impact Corruptions . | . . . . . . . . . . . . . . . . . . . . . . . . . . . . Robots Melted 21 | . . . . . . . . . . . . . 1 . 1 . 1 . . . . 1 1 . . 2 14 Combat Hostiles 12 | . . . . . . . . . . . . . 1 . . . . . . . . . 1 . . 2 8 Parts Melted 88 | . . 1 1 . 3 . . . . . 1 . 3 1 6 . 5 . 1 1 1 2 8 . 1 12 41 Heat Transferred 40755 | . 555 1399 296 . 1756 . . . 50 . 525 75 2072 1019 2072 605 924 37 740 333 518 988 2896 . 1064 2232 20599 Parts Sabotaged . | . . . . . . . . . . . . . . . . . . . . . . . . . . . . Parts Stolen . | . . . . . . . . . . . . . . . . . . . . . . . . . . . . Parts Stripped . | . . . . . . . . . . . . . . . . . . . . . . . . . . . . Power Chain Reactions 4 | . . . . . . . . . 1 . . . . . . . . . . . . . . . . . 3 Alert | -11 -10 -10 -9 -9 -6 -6 -6 -6 -5 -5 -5 -5 -5 -5 -5 -5 -4 -4 -4 -4 -3 -3 -3 -3 -2 -2 -1 ------- Run | Yrd Mat Sub Rec Scr Fac Low Low Zio Pro Fac Was Fac Ext Cet Arc Hub Fac Upp Upp War Pro Res Arm Lab Res Tes Acc Peak Influence 4788 | . 56 . 65 . 573 . . . . 12 54 306 1658 1224 648 1120 220 . . . . 99 2537 . 695 415 4788 Initial 1100 | . . . 28 . . . . . . 6 . . 149 1100 452 156 37 . . . . . 51 . . 342 238 Average 668 | . 35 . 14 . 224 . . . . 7 6 134 337 1157 554 379 38 . . . . 19 708 . 227 189 2478 Maximum Alert Level 5 | . . . . . 2 . . . . . . 1 5 4 2 4 1 . . . . . 5 . 2 2 5 Low Security (%) 48 | . 100 . 100 . 43 . . . . 100 100 61 52 . . 40 95 . . . . 100 31 . 60 61 . Level 1 17 | . . . . . 37 . . . . . . 38 16 . . 31 4 . . . . . 14 . 21 31 17 Level 2 12 | . . . . . 18 . . . . . . . 15 . 100 3 . . . . . . 23 . 18 7 8 Level 3 4 | . . . . . . . . . . . . . 4 21 . 23 . . . . . . 4 . . . 11 Level 4 6 | . . . . . . . . . . . . . 8 78 . 1 . . . . . . 13 . . . 9 Level 5 2 | . . . . . . . . . . . . . . . . . . . . . . . 11 . . . 2 High Security 8 | . . . . . . . . . . . . . 2 . . . . . . . . . . . . . 49 Max Security . | . . . . . . . . . . . . . . . . . . . . . . . . . . . . Sterilizations 1 | . . . . . . . . . . . . . . . . . . . . . . . . . . . 1 Squads Dispatched 111 | . . . . . 14 . . . . . . 7 5 . . 13 3 . . . . 5 19 . 7 6 32 Investigation 21 | . . . . . 4 . . . . . . 4 1 . . 5 2 . . . . 1 1 . 1 1 1 Extermination 28 | . . . . . 3 . . . . . . . . . . 2 1 . . . . . 8 . 2 5 7 Reinforcement 28 | . . . . . 3 . . . . . . 3 2 . . 2 . . . . . 4 4 . 3 . 7 Assault 28 | . . . . . 1 . . . . . . . 2 . . 1 . . . . . . 6 . 1 . 17 Garrison 6 | . . . . . 3 . . . . . . . . . . 3 . . . . . . . . . . . Intercept . | . . . . . . . . . . . . . . . . . . . . . . . . . . . . Searches Triggered . | . . . . . . . . . . . . . . . . . . . . . . . . . . . . Construction Impeded 8 | . . . . . 1 . . . . . . 1 1 . . 1 . . . . . . . . . . 4 Haulers Reinforced 4 | . . . . . . . . . . . . 1 . . . . . . . . . 2 . . . . 1 Active Scanning Responses . | . . . . . . . . . . . . . . . . . . . . . . . . . . . . Cargo Convoy Interrupts . | . . . . . . . . . . . . . . . . . . . . . . . . . . . . Stealth | -11 -10 -10 -9 -9 -6 -6 -6 -6 -5 -5 -5 -5 -5 -5 -5 -5 -4 -4 -4 -4 -3 -3 -3 -3 -2 -2 -1 --------- Run | Yrd Mat Sub Rec Scr Fac Low Low Zio Pro Fac Was Fac Ext Cet Arc Hub Fac Upp Upp War Pro Res Arm Lab Res Tes Acc Distress Signals 29 | . . . . . 2 . . . . . . . 3 1 . 2 1 . . 2 1 9 2 . 2 1 3 Communications Jammed 44 | . . . . . . . . . . . . . . . . . . . . . . 2 42 . . . . Distress Signals 44 | . . . . . . . . . . . . . . . . . . . . . . 2 42 . . . . Times Spotted 603 | . 3 19 2 . 42 . . . 5 . 9 19 48 8 18 13 13 1 6 36 4 14 116 . 25 33 169 Peak Tracking Total 16 | . 1 3 1 . 5 . . . 2 . 5 6 9 4 2 5 9 1 4 11 1 4 15 . 6 4 16 Tactical Retreats 20 | . . 2 . . 3 . . . . . 1 4 1 . . 1 . . . 1 1 2 1 . 1 2 . Traps | -11 -10 -10 -9 -9 -6 -6 -6 -6 -5 -5 -5 -5 -5 -5 -5 -5 -4 -4 -4 -4 -3 -3 -3 -3 -2 -2 -1 ------- Run | Yrd Mat Sub Rec Scr Fac Low Low Zio Pro Fac Was Fac Ext Cet Arc Hub Fac Upp Upp War Pro Res Arm Lab Res Tes Acc Traps Triggered 18 | . . . . . 2 . . . . 1 . . 1 . . . . . . . . 1 6 . . 6 1 Indirectly . | . . . . . . . . . . . . . . . . . . . . . . . . . . . . Trap Hack Attempts . | . . . . . . . . . . . . . . . . . . . . . . . . . . . . Triggered . | . . . . . . . . . . . . . . . . . . . . . . . . . . . . Disarmed 1 | . . . . . 1 . . . . . . . . . . . . . . . . . . . . . . Reprogrammed . | . . . . . . . . . . . . . . . . . . . . . . . . . . . . Reused . | . . . . . . . . . . . . . . . . . . . . . . . . . . . . Traps Extracted . | . . . . . . . . . . . . . . . . . . . . . . . . . . . . Installed . | . . . . . . . . . . . . . . . . . . . . . . . . . . . . Triggered 19 | . . . . . . . . . . . . . 1 . . . . . . 17 1 . . . . . . Most Traps Carried 1 | . . . . 1 1 . . . . . . . . . . . . . . . . . . . . . . Machines | -11 -10 -10 -9 -9 -6 -6 -6 -6 -5 -5 -5 -5 -5 -5 -5 -5 -4 -4 -4 -4 -3 -3 -3 -3 -2 -2 -1 ---------- Run | Yrd Mat Sub Rec Scr Fac Low Low Zio Pro Fac Was Fac Ext Cet Arc Hub Fac Upp Upp War Pro Res Arm Lab Res Tes Acc Machines Disabled 60 | . . . . . 10 . . . . . . 2 5 . 2 3 2 1 . 1 . . 20 . 2 5 7 Max in Single Turn 6 | . . . . . 6 . . . . . . 2 1 . . 1 1 1 . 1 . . 2 . . 1 2 Garrison Access 6 | . . . . . 1 . . . . . . 1 . . . . 1 . . . . 1 . . 1 1 . Network Hub 1 | . . . . . . . . . . . . . . . . 1 . . . . . . . . . . . Energy Cycler 1 | . . . . . . . . . . . . . . . . . . . . . . . . . . . 1 Machines Repaired . | . . . . . . . . . . . . . . . . . . . . . . . . . . . . Machines Dismantled . | . . . . . . . . . . . . . . . . . . . . . . . . . . . . Machines Sabotaged . | . . . . . . . . . . . . . . . . . . . . . . . . . . . . Overloaded Fab Kills . | . . . . . . . . . . . . . . . . . . . . . . . . . . . . Hacking | -11 -10 -10 -9 -9 -6 -6 -6 -6 -5 -5 -5 -5 -5 -5 -5 -5 -4 -4 -4 -4 -3 -3 -3 -3 -2 -2 -1 --------- Run | Yrd Mat Sub Rec Scr Fac Low Low Zio Pro Fac Was Fac Ext Cet Arc Hub Fac Upp Upp War Pro Res Arm Lab Res Tes Acc Machines Accessed 99 | . . 3 6 3 8 . . 1 . 2 . 8 9 1 . 8 7 1 . 7 . 3 10 . 5 15 2 Terminals 57 | . . . 6 . 7 . . . . 1 . 3 9 1 . 8 3 . . . . 1 6 . 3 8 1 Fabricators 9 | . . . . . . . . . . . . 2 . . . . 2 . . . . 1 2 . . 2 . Repair Stations 3 | . . . . . . . . . . . . . . . . . . . . . . . 1 . . 2 . Recycling Units 5 | . . . . . . . . . . 1 . 1 . . . . . . . . . 1 1 . 1 . . Scanalyzers 4 | . . . . . . . . . . . . 1 . . . . 1 . . . . . . . . 2 . Garrison Access 6 | . . . . . 1 . . . . . . 1 . . . . 1 . . . . . . . 1 1 1 Total Hacks 324 | . . 8 16 10 23 . . 3 . 6 . 23 17 3 . 25 45 1 . 11 . 19 30 . 14 64 6 Successful 164 | . . 8 9 10 5 . . 3 . 4 . 12 10 1 . 13 15 1 . 11 . 13 10 . 9 30 . Failed 160 | . . . 7 . 18 . . . . 2 . 11 7 2 . 12 30 . . . . 6 20 . 5 34 6 Catastrophic 29 | . . . 2 . 4 . . . . . . 2 . . . 3 3 . . . . . 6 . . 8 1 Database Lockouts . | . . . . . . . . . . . . . . . . . . . . . . . . . . . . Manual 101 | . . . 11 . 10 . . . . 5 . 7 . 1 . 11 7 . . . . 10 12 . 4 23 . Terminals 190 | . . . 16 . 20 . . . . 5 . 8 17 3 . 25 22 . . . . 8 15 . 12 36 3 Fabricators 39 | . . . . . . . . . . . . 6 . . . . 7 . . . . 9 9 . . 8 . Repair Stations 14 | . . . . . . . . . . . . . . . . . . . . . . . 3 . . 11 . Recycling Units 11 | . . . . . . . . . . 1 . 4 . . . . . . . . . 2 3 . 1 . . Scanalyzers 21 | . . . . . . . . . . . . 4 . . . . 11 . . . . . . . . 6 . Garrison Access 16 | . . . . . 3 . . . . . . 1 . . . . 5 . . . . . . . 1 3 3 Terminal Hacks 96 | . . 8 3 10 5 . . 3 . 1 . 3 10 1 . 9 4 1 . 11 . 2 5 . 7 13 . Record 17 | . . 6 . 5 . . . . . . . . . . . . . . . 5 . . 1 . . . . Part Schematic 5 | . . . . . 1 . . 3 . . . 1 . . . . . . . . . . . . . . . Robot Analysis 8 | . . . 1 5 . . . . . . . . 1 . . . . . . . . . . . . 1 . Prototype ID Bank 7 | . . . 1 . . . . . . . . . . . . . . . . 5 . . 1 . . . . Open Door 12 | . . 1 . . . . . . . . . . 7 1 . . . 1 . 1 . . 1 . . . . Level Access Points 2 | . . . . . . . . . . . . . . . . 1 1 . . . . . . . . . . Branch Access Points 4 | . . . . . 1 . . . . . . 1 . . . . 1 . . . . . . . 1 . . Emergency Access Points 1 | . . . . . . . . . . . . . . . . . . . . . . . . . . 1 . Machine Index 1 | . . . . . . . . . . . . . . . . . . . . . . . . . 1 . . Terminal Index 7 | . . . 1 . 1 . . . . 1 . 1 . . . 1 . . . . . . . . 1 1 . Recycling Unit Index 1 | . . . . . . . . . . . . . . . . . . . . . . . . . . 1 . Alert Level 7 | . . . . . . . . . . . . . 1 . . 1 1 . . . . 1 1 . . 2 . Unreport Threat 10 | . . . . . . . . . . . . . . . . 5 1 . . . . . 1 . . 3 . Locate Traps 3 | . . . . . . . . . . . . . 1 . . . . . . . . . . . 1 1 . Disarm Traps 1 | . . . . . 1 . . . . . . . . . . . . . . . . . . . . . . Patrol Status 1 | . . . . . . . . . . . . . . . . . . . . . . . . . . 1 . Recall Extermination 2 | . . . . . . . . . . . . . . . . 1 . . . . . . . . 1 . . Hauler Manifests 1 | . . . . . . . . . . . . . . . . . . . . . . . . . 1 . . Zone Layout 5 | . . . . . 1 . . . . . . . . . . . . . . . . 1 . . 1 2 . Release Object 1 | . . 1 . . . . . . . . . . . . . . . . . . . . . . . . . Fabricator Hacks 15 | . . . . . . . . . . . . 4 . . . . 2 . . . . 4 2 . . 3 . Network Status 4 | . . . . . . . . . . . . . . . . . 1 . . . . . 1 . . 2 . Load Schematic 6 | . . . . . . . . . . . . 2 . . . . 1 . . . . 2 . . . 1 . Build 5 | . . . . . . . . . . . . 2 . . . . . . . . . 2 1 . . . . Repair Station Hacks 7 | . . . . . . . . . . . . . . . . . . . . . . . 1 . . 6 . Scan Component 5 | . . . . . . . . . . . . . . . . . . . . . . . 1 . . 4 . Repair 2 | . . . . . . . . . . . . . . . . . . . . . . . . . . 2 . Recycling Unit Hacks 3 | . . . . . . . . . . 1 . 1 . . . . . . . . . . 1 . . . . Retrieve Components 3 | . . . . . . . . . . 1 . 1 . . . . . . . . . . 1 . . . . Scanalyzer 9 | . . . . . . . . . . . . 1 . . . . 5 . . . . . . . . 3 . Insert Component 7 | . . . . . . . . . . . . 1 . . . . 3 . . . . . . . . 3 . Analyze 2 | . . . . . . . . . . . . . . . . . 2 . . . . . . . . . . Garrison Access Hacks 4 | . . . . . . . . . . . . 1 . . . . 1 . . . . . . . 1 1 . Seal Access 4 | . . . . . . . . . . . . 1 . . . . 1 . . . . . . . 1 1 . Unauthorized Hacks 30 | . . . 6 . . . . . . 2 . 2 . . . 4 3 . . . . 7 1 . 1 4 . Terminals 21 | . . . 6 . . . . . . 2 . 1 . . . 4 2 . . . . 3 . . . 3 . Assimilate 1 | . . . . . . . . . . . . . . . . . . . . . . . . . . 1 . Botnet 3 | . . . 1 . . . . . . . . . . . . . . . . . . 1 . . . 1 . Operators 5 | . . . . . . . . . . 1 . . . . . 1 1 . . . . 1 . . . 1 . Skim 9 | . . . 5 . . . . . . 1 . 1 . . . . 1 . . . . 1 . . . . . Sabotage 3 | . . . . . . . . . . . . . . . . 3 . . . . . . . . . . . Fabricators 6 | . . . . . . . . . . . . . . . . . 1 . . . . 4 1 . . . . Report 1 | . . . . . . . . . . . . . . . . . . . . . . 1 . . . . . Prioritize 1 | . . . . . . . . . . . . . . . . . . . . . . 1 . . . . . Liberate 2 | . . . . . . . . . . . . . . . . . . . . . . 1 1 . . . . Haulers 1 | . . . . . . . . . . . . . . . . . . . . . . 1 . . . . . Recompile 1 | . . . . . . . . . . . . . . . . . 1 . . . . . . . . . . Repair Stations 1 | . . . . . . . . . . . . . . . . . . . . . . . . . 1 . . Recycling Units . | . . . . . . . . . . . . . . . . . . . . . . . . . . . . Scrapoids 1 | . . . . . . . . . . . . . . . . . . . . . . . . . 1 . . Scanalyzers 2 | . . . . . . . . . . . . 1 . . . . . . . . . . . . . 1 . Researchers 1 | . . . . . . . . . . . . . . . . . . . . . . . . . . 1 . Extract 1 | . . . . . . . . . . . . 1 . . . . . . . . . . . . . . . Garrison Access . | . . . . . . . . . . . . . . . . . . . . . . . . . . . . Data Cores Recovered . | . . . . . . . . . . . . . . . . . . . . . . . . . . . . Used . | . . . . . . . . . . . . . . . . . . . . . . . . . . . . Hacking Detections 64 | . . . 4 . 8 . . . . 1 . 7 3 1 . 7 5 . . . . 3 7 . 3 13 2 Full Trace Events 14 | . . . 1 . 3 . . . . . . 3 1 . . 2 1 . . . . 1 . . . 1 1 Feedback Events . | . . . . . . . . . . . . . . . . . . . . . . . . . . . . Feedback Blocked . | . . . . . . . . . . . . . . . . . . . . . . . . . . . . Robot Schematics Acquired 4 | . . . . . . . . 4 . . . . . . . . . . . . . . . . . . . Robots Built 3 | . . . . . . . . . . . . 2 . . . . . . . . . . 1 . . . . Authchips . | . . . . . . . . . . . . . . . . . . . . . . . . . . . . Time 297 | . . . . . . . . . . . . 204 . . . . . . . . . . 93 . . . . Total Robot Build Rating 23 | . . . . . . . . . . . . 16 . . . . . . . . . . 7 . . . . Part Schematics Acquired 33 | . . . . . 1 . . 18 5 3 . 4 . . . . 2 . . . . . . . . . . Parts Built 4 | . . . . . . . . . . . . 2 . . . . . . . . . 2 . . . . . Authchips 1 | . . . . . . . . . . . . . . . . . . . . . . 1 . . . . . Time 122 | . . . . . . . . . . . . 58 . . . . . . . . . 64 . . . . . Total Part Build Rating 30 | . . . . . . . . . . . . 14 . . . . . . . . . 16 . . . . . Parts Repaired 2 | . . . . . . . . . . . . . . . . . . . . . . . . . . 2 . Time 151 | . . . . . . . . . . . . . . . . . . . . . . . . . . 151 . Parts Recycled . | . . . . . . . . . . . . . . . . . . . . . . . . . . . . Recycled Matter . | . . . . . . . . . . . . . . . . . . . . . . . . . . . . Retrieved Matter . | . . . . . . . . . . . . . . . . . . . . . . . . . . . . Retrieved Components 3 | . . . . . . . . . . 1 . 2 . . . . . . . . . . . . . . . Parts Scanalyzed 3 | . . . . . . . . . . . . 1 . . . . 2 . . . . . . . . . . Part Schematics Acquired 2 | . . . . . . . . . . . . . . . . . 2 . . . . . . . . . . Parts Damaged 2 | . . . . . . . . . . . . 1 . . . . 1 . . . . . . . . . . Bothacking | -11 -10 -10 -9 -9 -6 -6 -6 -6 -5 -5 -5 -5 -5 -5 -5 -5 -4 -4 -4 -4 -3 -3 -3 -3 -2 -2 -1 ------------ Run | Yrd Mat Sub Rec Scr Fac Low Low Zio Pro Fac Was Fac Ext Cet Arc Hub Fac Upp Upp War Pro Res Arm Lab Res Tes Acc Used RIF Installer . | . . . . . . . . . . . . . . . . . . . . . . . . . . . . Robots Hacked . | . . . . . . . . . . . . . . . . . . . . . . . . . . . . Non-combat . | . . . . . . . . . . . . . . . . . . . . . . . . . . . . Combat . | . . . . . . . . . . . . . . . . . . . . . . . . . . . . Robot Hacks Applied . | . . . . . . . . . . . . . . . . . . . . . . . . . . . . Relay Couplers Released 5 | . . . . . 2 . . . . . . . . . . . 1 . . . . 2 . . . . . Machine Destruction 5 | . . . . . 2 . . . . . . . . . . . 1 . . . . 2 . . . . . Fabnet Peak Effective % . | . . . . . . . . . . . . . . . . . . . . . . . . . . . . Robots Rewired 16 | . . . . . . . . . . . . . 15 . . . . . . . . . . . . 1 . Allies Hacked 4 | . . . . . . . . . . . . . 1 . . . . . . . . . 1 . 2 . . Hacks Repelled . | . . . . . . . . . . . . . . . . . . . . . . . . . . . . Allies | -11 -10 -10 -9 -9 -6 -6 -6 -6 -5 -5 -5 -5 -5 -5 -5 -5 -4 -4 -4 -4 -3 -3 -3 -3 -2 -2 -1 -------- Run | Yrd Mat Sub Rec Scr Fac Low Low Zio Pro Fac Was Fac Ext Cet Arc Hub Fac Upp Upp War Pro Res Arm Lab Res Tes Acc Total Allies 67 | . . . . . . . . . . . 19 2 24 5 . . . . . . . . 11 . 5 1 . Largest Group 19 | . . . . . . . . . . . 19 2 16 14 13 5 . . . . . . 10 . 5 1 1 Highest-Rated Group 908 | . . . . . . . . . . . 702 100 620 908 862 480 . . . . . . 481 . 320 148 148 Highest-Rated Ally 159 | . . . . . . . . . . . 50 50 159 159 152 96 . . . . . . 58 . 64 148 148 Total Orders 49 | . . . . . . . . 3 . 1 . 3 5 10 2 6 . . . . . 1 4 . 7 3 4 STAY 23 | . . . . . . . . 1 . . . . 2 6 1 3 . . . . . . 3 . 3 2 2 ROAM 1 | . . . . . . . . . . . . . . . . . . . . . . . . . 1 . . FOLLOW 18 | . . . . . . . . . . . . . 3 4 1 3 . . . . . . 1 . 3 1 2 EXPLORE 4 | . . . . . . . . 1 . . . 2 . . . . . . . . . 1 . . . . . RETURN 3 | . . . . . . . . 1 . 1 . 1 . . . . . . . . . . . . . . . Ally Attacks 586 | . . . . . . . . . . . 67 4 148 77 22 120 . . . . . 1 29 . 90 3 25 Total Damage 19241 | . . . . . . . . . . . 3200 242 4120 1456 785 5333 . . . . . 95 682 . 2171 118 1039 Kills 96 | . . . . . . . . . . . 6 . 37 5 5 29 . . . . . . 4 . 6 1 3 Allies Corrupted 3 | . . . . . . . . . . . . . . . . . . . . . . 1 1 . 1 . . Allies Melted 1 | . . . . . . . . . . . . . . . . . . . . 1 . . . . . . . Intel | -11 -10 -10 -9 -9 -6 -6 -6 -6 -5 -5 -5 -5 -5 -5 -5 -5 -4 -4 -4 -4 -3 -3 -3 -3 -2 -2 -1 ------- Run | Yrd Mat Sub Rec Scr Fac Low Low Zio Pro Fac Was Fac Ext Cet Arc Hub Fac Upp Upp War Pro Res Arm Lab Res Tes Acc Robot Analysis Total 8 | . . . 1 5 . . . . . . . . 1 . . . . . . . . . . . . 1 . Derelict Logs Recovered 9 | . . 1 . 4 . 1 1 1 1 . . . . . . . . . . . . . . . . . . Drone Launches 6 | . . . . . . . . 1 . 1 . 3 . . . . . . . . . 1 . . . . . Drone Recoveries 4 | . . . . . . . . 1 . 1 . 2 . . . . . . . . . . . . . . . Exploration | -11 -10 -10 -9 -9 -6 -6 -6 -6 -5 -5 -5 -5 -5 -5 -5 -5 -4 -4 -4 -4 -3 -3 -3 -3 -2 -2 -1 ------------- Run | Yrd Mat Sub Rec Scr Fac Low Low Zio Pro Fac Was Fac Ext Cet Arc Hub Fac Upp Upp War Pro Res Arm Lab Res Tes Acc Turns Passed 44067 | . 429 2723 2608 6218 3023 647 312 1317 578 482 240 552 2174 576 620 1049 833 832 1864 2200 2577 1061 3387 27 1270 2258 4210 Spaces Moved 16575 | 1 214 1373 558 1889 883 416 202 876 485 215 238 604 974 180 287 418 391 334 481 807 818 323 951 9 547 739 1362 Core 537 | . . 131 19 3 19 . . . 145 56 110 . . . . . . . . . . . . . . . 54 Treads 11282 | . 208 177 268 1157 843 . . . . 159 10 . 867 180 287 418 391 334 481 807 818 323 951 9 547 739 1308 Legs 7 | 1 6 . . . . . . . . . . . . . . . . . . . . . . . . . . Wheels 3191 | . . 1065 271 . 21 416 202 876 340 . . . . . . . . . . . . . . . . . . Hover 816 | . . . . . . . . . . . 105 604 107 . . . . . . . . . . . . . . Flight 742 | . . . . 729 . . . . . . 13 . . . . . . . . . . . . . . . . Fastest Speed 40 | 120 120 110 210 40 155 155 155 125 50 160 40 55 55 160 160 160 152 155 240 245 245 245 245 335 155 150 50 Average Speed 220 | 120 158 171 457 322 279 155 155 141 108 209 81 73 173 205 160 160 178 235 320 259 249 258 258 335 164 216 207 Slowest Speed 3650 | 120 160 500 3650 480 950 155 155 155 140 350 171 171 320 240 160 160 240 240 400 400 325 325 410 335 241 237 241 Overloaded Moves . | . . . . . . . . . . . . . . . . . . . . . . . . . . . . Propulsion Burnouts . | . . . . . . . . . . . . . . . . . . . . . . . . . . . . Robots Hopped . | . . . . . . . . . . . . . . . . . . . . . . . . . . . . Cave-ins Triggered 2 | . . . . . . . . . . . . . . . . 1 . . . . . . 1 . . . . Exploration Rate (%) 56 | 2 26 73 84 86 36 68 52 88 81 7 87 28 86 85 98 44 16 55 69 92 89 11 71 5 21 92 36 Regions Visited 27 Branch Regions 18 Pre-discovered Areas 6 | . . 1 2 1 . . . 2 . . . . . . . . . . . . . . . . . . . Known Exits Taken 10 | . . . . . 1 . . . . . . 1 1 1 1 1 1 . . . 1 1 . . 1 . . Unknown Exits Taken 15 | 1 1 1 1 1 . 1 1 1 1 . . . . . . . . 1 1 1 . . 1 1 . 1 . Scrap Searched 20 | . . 3 . 6 . . 2 1 4 . . . . . . . . . 2 . 2 . . . . . . Spaces Dug 347 | . . 21 . . 10 . . . 2 . . 23 2 . . 22 11 2 8 4 10 18 28 . 65 48 73 Terrain Destroyed 1808 | . . 49 3 . 155 . . . 8 . . 48 129 . 2 41 20 9 22 6 30 26 356 . 77 116 711 Melee 22 | . . . . . 6 . . . 2 . . 9 2 . . . . . . . . . 2 . 1 . . Projectile 371 | . . 17 3 . 11 . . . . . . 1 . . 2 41 20 9 22 6 30 26 66 . 14 56 47 AOE 1415 | . . 32 . . 138 . . . 6 . . 38 127 . . . . . . . . . 288 . 62 60 664 Terrain Rammed 1 | . . . . . . . . . . . . . . . . . . . . . . . . . . . 1 Walls Destroyed . | . . . . . . . . . . . . . . . . . . . . . . . . . . . . Machines Disabled . | . . . . . . . . . . . . . . . . . . . . . . . . . . . . Actions | -11 -10 -10 -9 -9 -6 -6 -6 -6 -5 -5 -5 -5 -5 -5 -5 -5 -4 -4 -4 -4 -3 -3 -3 -3 -2 -2 -1 --------- Run | Yrd Mat Sub Rec Scr Fac Low Low Zio Pro Fac Was Fac Ext Cet Arc Hub Fac Upp Upp War Pro Res Arm Lab Res Tes Acc Total 23034 | . 268 1598 598 2034 1248 416 201 953 518 240 278 688 1370 348 385 744 522 369 776 914 1315 512 1804 8 850 1391 2686 Wait 3478 | . 22 56 4 20 151 . . 62 13 11 21 26 234 115 30 270 64 17 246 19 425 46 261 . 134 385 846 Move 16548 | . 213 1372 557 1888 882 415 201 875 484 215 237 603 973 179 286 417 390 333 480 806 817 322 950 8 546 738 1361 Hop . | . . . . . . . . . . . . . . . . . . . . . . . . . . . . Pick Up 308 | . 4 24 18 52 18 . . 3 1 3 1 4 10 7 5 1 5 1 1 26 2 19 53 . 17 16 17 Fast Attach 188 | . 1 9 2 14 16 . . 1 2 6 9 11 15 3 9 1 7 . 1 5 5 6 21 . 9 23 12 Attach 163 | . 2 6 1 1 15 . . 2 1 1 1 5 . 5 1 . 1 . 1 5 4 16 44 . 19 10 22 Detach 58 | . . . . 1 1 . . . . . 1 2 . . 2 1 1 . 1 6 2 6 7 . 7 9 11 Swap 227 | . 2 8 1 . 20 . . 3 1 . . 2 6 7 2 7 7 5 4 7 8 8 48 . 6 16 59 Drop 353 | . 4 24 5 53 19 . . 6 6 2 6 14 8 10 10 1 6 2 1 22 7 16 60 . 21 33 17 Fire 1545 | . 20 91 10 5 106 1 . . 7 2 2 8 34 22 40 45 41 11 41 18 45 73 354 . 89 146 334 Melee 56 | . . . . . 20 . . 1 3 . . 13 15 . . . . . . . . . 2 . 2 . . Ram 1 | . . . . . . . . . . . . . . . . . . . . . . . . . . . 1 Kick . | . . . . . . . . . . . . . . . . . . . . . . . . . . . . Crush 3 | . . . . . . . . . . . . . 1 . . 1 . . . . . . . . . 1 . Escape Stasis 29 | . . . . . . . . . . . . . 7 . . . . . . . . . 4 . . 12 6 Rewire 69 | . . . . . . . . . . . . . 67 . . . . . . . . . . . . 2 . Trap . | . . . . . . . . . . . . . . . . . . . . . . . . . . . . Miscellaneous 8 | . . 8 . . . . . . . . . . . . . . . . . . . . . . . . . Route ------- -11/Scrapyard -10/Materials -10/Subcaves (discovered 3 exits: [*Mat x2] / *Rec) -9/Recycling (discovered 2 exits: Fac / *Scr) -9/Scraptown (discovered 2 exits: *Fac x2) -6/Factory (discovered 4 exits: *Fac x2 / *Low x2) -6/Lower Caves -6/Lower Caves (discovered 2 exits: *Fac / *Zio) -6/Zion -5/Proximity Caves -5/Factory (discovered 6 exits: *Fac x2 / Upp x2 / Ext x2) -5/Waste -5/Factory (discovered 4 exits: Upp x2 / *Ext x2) -5/Extension (discovered 2 exits: *Fac / *Cet) -5/Cetus (discovered 2 exits: *Fac / *Arc) -5/Archives (discovered 3 exits: *Fac / *Hub x2) -5/Hub_04(d) (discovered 4 exits: *Fac x4) -4/Factory (discovered 6 exits: Res x4 / *Upp x2) -4/Upper Caves -4/Upper Caves (discovered 2 exits: *Res / *War) -4/Warlord -3/Proximity Caves -3/Research -3/Armory (discovered 2 exits: *Res / [*Lab]) -3/Lab -2/Research (discovered 3 exits: *Acc / *Tes x2) -2/Testing -1/Access To Epsilon Eridani History --------- Turn | Location | Event 1 | -11/Scrapyard | Discovered new exit (range 0) 1 | -11/Scrapyard | Entered Materials 302 | -10/Materials | Build established: Mutant 424 | -10/Materials | Discovered new exit (range 4) 430 | -10/Materials | Entered Subcaves 453 | -10/Subcaves | Learned location of Zion (-6) 807 | -10/Subcaves | Disturbed a concealed Subdweller 841 | -10/Subcaves | Lost 3 parts (2n1u) 933 | -10/Subcaves | Core integrity fell below 50% 1148 | -10/Subcaves | Build established: Subdweller-Mutant 1622 | -10/Subcaves | Shifting Twisted Machinery released Battle Rifle 1629 | -10/Subcaves | Shifting Twisted Machinery released Sub. Laser 1898 | -10/Subcaves | Shifting Twisted Machinery released Battle Cannon 1983 | -10/Subcaves | Shifting Twisted Machinery released Sub. Monowheel 2286 | -10/Subcaves | Discovered new exit (range 12) 2306 | -10/Subcaves | Visited Clippyterm 2310 | -10/Subcaves | Learned Factory stockpile data 2310 | -10/Subcaves | Learned Research machine intel 2344 | -10/Subcaves | Shifting Twisted Machinery released Sub. Monowheel 2574 | -10/Subcaves | A swath of the cavern ceiling suddenly collapsed 2585 | -10/Subcaves | Ambushed by Subdweller buried in earth 2597 | -10/Subcaves | Core integrity fell below 20% 2625 | -10/Subcaves | Lost 4 parts (1p1n1u1w) 2721 | -10/Subcaves | Found SUBCON Basin 2923 | -10/Subcaves | Build established: Hauler-Mutant 2961 | -10/Subcaves | Discovered new exit (range 13) 3151 | -10/Subcaves | Discovered new exit (range 2) 3153 | -10/Subcaves | Entered Recycling 5040 | -9/Recycling | Learned Storage emergency access door positions 5108 | -9/Recycling | Identified exit to Factory 5366 | -9/Recycling | Learned location of Mines (-9) 5611 | -9/Recycling | Scanned before Scraplab entrance 5678 | -9/Recycling | Entered Scraplab 5756 | -9/Recycling | Discovered new exit (range 2) 5761 | -9/Recycling | Entered Scraptown 6466 | -9/Scraptown | Heard Great Nut preacher, LISTEN AND RECITE! 6630 | -9/Scraptown | Scanned Subdweller tech in exchange for log data 6639 | -9/Scraptown | Learned Factory emergency access door positions 6644 | -9/Scraptown | Learned Factory machine intel 6649 | -9/Scraptown | Learned Research interactive machine intel 6654 | -9/Scraptown | Learned location of Armory (-3) 6697 | -9/Scraptown | Discovered new exit (range 13) 6991 | -9/Scraptown | Visited Symbiants 7058 | -9/Scraptown | Visited Scrapoid Research Area 7283 | -9/Scraptown | Visited Cave Peace 7370 | -9/Scraptown | Visited Comm Corps 7403 | -9/Scraptown | Visited Fellowship of the Rings 7456 | -9/Scraptown | Visited Cyclists 7691 | -9/Scraptown | Visited UFD Registry 7691 | -9/Scraptown | Registered with UFD as "Gammamaster" 7816 | -9/Scraptown | Visited Curators Association 7883 | -9/Scraptown | Visited Abandonware Association 7941 | -9/Scraptown | Learned abandonware demo "POISON.EXE" 8047 | -9/Scraptown | Visited Scrapoid Pod Storage 8071 | -9/Scraptown | Found Scrapoid Pod 8148 | -9/Scraptown | Visited Junk Repository 8266 | -9/Scraptown | Visited Infowarlord's Domain 8295 | -9/Scraptown | Found Spectral Analyzer 8421 | -9/Scraptown | Visited Science Guys 8525 | -9/Scraptown | Visited Scrap Suit Storage 8606 | -9/Scraptown | Visited LU-1G1's Boring Crew 8702 | -9/Scraptown | Visited Analyses Database 9057 | -9/Scraptown | Entered Cyclist Reading Room 9788 | -9/Scraptown | Build established: Mutant 10106 | -9/Scraptown | Visited A0-MCA Data Center 10108 | -9/Scraptown | Given an A rating by A0-MCA 10118 | -9/Scraptown | Found A0-MCA's Component Scanner 10423 | -9/Scraptown | Build established: Hauler-Mutant 11293 | -9/Scraptown | Guru changed UFD alias to "Flakbrain" 11965 | -9/Scraptown | Discovered new exit (range 3) 11979 | -9/Scraptown | Entered Factory 11979 | -6/Factory | Evolved 8 slots: Propulsion x1, Utility x6, Weapon x1 11982 | -6/Factory | Loaded intel: 252 machine locations 12320 | -6/Factory | Build established: Hauler-Tank 12606 | -6/Factory | Garrison activated, responded to threat 13044 | -6/Factory | Lost 5 parts (2u3w) 13118 | -6/Factory | Found Launcher Loader 13296 | -6/Factory | Build established: Gunner 13707 | -6/Factory | Lost 3 parts (2n1w) 13723 | -6/Factory | Build established: Mutant 13754 | -6/Factory | Discovered new exit (range 10) 14270 | -6/Factory | Discovered new exit (range 10) 14391 | -6/Factory | Identified exit to Lower Caves 14718 | -6/Factory | Build established: Gunner 15002 | -6/Factory | Entered Lower Caves 15155 | -6/Lower Caves | Encountered a Warlord checkpoint 15173 | -6/Lower Caves | Learned 4 Factory zone layouts 15621 | -6/Lower Caves | Discovered new exit (range 8) 15649 | -6/Lower Caves | Entered another Lower Caves area 15667 | -6/Lower Caves | Discovered new exit (range 11) 15792 | -6/Lower Caves | Learned location of 1 exit from Factory 15804 | -6/Lower Caves | Encountered a Warlord checkpoint 15942 | -6/Lower Caves | Discovered new exit (range 7) 15961 | -6/Lower Caves | Entered Zion 16062 | -6/Zion | Discovered new exit (range 23) 16271 | -6/Zion | Received a visual enhancement algorithm 16325 | -6/Zion | Learned location of Quarantine (-3) 16351 | -6/Zion | Build established: Mutant 16496 | -6/Zion | Given A8's code to call for help 16632 | -6/Zion | Given the Hacking Drone Bay 16633 | -6/Zion | Found Prototype Device 16633 | -6/Zion | Identified Hacking Drone Bay 16716 | -6/Zion | Learned location of 1 exit from Lower Caves 17132 | -6/Zion | Found Prototype Energy Gun 17278 | -6/Zion | Entered Proximity Caves 17284 | -5/Proximity Caves | Tech Extrapolator generated special schematic: Energy Deflector 17719 | -5/Proximity Caves | Spotted B-75 Beast 17775 | -5/Proximity Caves | Core integrity fell below 50% 17805 | -5/Proximity Caves | Lost 3 parts (1p1n1w) 17850 | -5/Proximity Caves | Discovered new exit (range 11) 17856 | -5/Proximity Caves | Entered Factory 17856 | -5/Factory | Evolved 2 slots: Utility x1, Weapon x1 17857 | -5/Factory | Identified exit to Extension 17858 | -5/Factory | Identified exit to Upper Caves 17858 | -5/Factory | Identified exit to Factory 18144 | -5/Factory | Build established: Gunner 18319 | -5/Factory | Discovered exit to Factory (range 3) 18338 | -5/Factory | Sucked down chute 18338 | -5/Factory | Entered Waste 18346 | -5/Waste | Spotted C-40 Crusher 18347 | -5/Waste | Spotted C-40 Crusher 18354 | -5/Waste | Spotted C-40 Crusher 18358 | -5/Waste | Spotted C-40 Crusher 18362 | -5/Waste | Spotted C-40 Crusher 18381 | -5/Waste | Crushed by Compactor (1 part destroyed, 2 dropped) 18382 | -5/Waste | Crushed by Compactor (1 part destroyed, 1 dropped) 18396 | -5/Waste | Warlord forces began an assault 18414 | -5/Waste | Found Prototype Device 18414 | -5/Waste | Identified Exp. Thermal Shield 18416 | -5/Waste | Spotted C-40 Crusher 18445 | -5/Waste | Lost 6 allies 18475 | -5/Waste | Destroyed C-40 Crusher 18550 | -5/Waste | Discovered new exit (range 12) 18578 | -5/Waste | Entered Factory 18675 | -5/Factory | Fabricated Quantum Capacitor (x2) 19052 | -5/Factory | Fabricated X-82 Rainmaker? 19063 | -5/Factory | Build established: Mutant 19130 | -5/Factory | Entered Extension 19237 | -5/Extension | Rescued A7 19796 | -5/Extension | Build established: Hacker-Tank 20154 | -5/Extension | Rescued a captive Derelict 20556 | -5/Extension | Build established: Commander-Skirmisher 20568 | -5/Extension | Spotted B-75 Beast 20586 | -5/Extension | Spotted B-75 Beast 20596 | -5/Extension | Allies destroyed B-75 Beast 20604 | -5/Extension | Allies destroyed B-75 Beast 20669 | -5/Extension | Lost 7 allies 20697 | -5/Extension | Rescued a captive Derelict 20778 | -5/Extension | Rescued a captive Derelict 20779 | -5/Extension | Rescued a captive Derelict 20926 | -5/Extension | Rescued a captive Derelict 20930 | -5/Extension | First assault squad dispatched 21008 | -5/Extension | Rescued a captive Derelict 21143 | -5/Extension | Rescued a captive Derelict 21143 | -5/Extension | Rescued a captive Derelict 21201 | -5/Extension | Discovered exit to Factory (range 10) 21203 | -5/Extension | Discovered new exit (range 6) 21230 | -5/Extension | Disrupted transfer network 21243 | -5/Extension | High security lockdown imminent 21270 | -5/Extension | Lost 3 allies 21300 | -5/Extension | Identified exit to Cetus 21304 | -5/Extension | Entered Cetus 21304 | -5/Cetus | Accompanied by 13 allies (A7) 21309 | -5/Cetus | Acquired a Cetus Manufacturing Module code from A7 21340 | -5/Cetus | Spotted Cetus Guard 21340 | -5/Cetus | Spotted Cetus Guard 21342 | -5/Cetus | Spotted Cetus Guard 21344 | -5/Cetus | Spotted Cetus Guard 21411 | -5/Cetus | Destroyed Cetus Guard 21418 | -5/Cetus | Allies destroyed Cetus Guard 21423 | -5/Cetus | Destroyed Cetus Guard 21435 | -5/Cetus | Destroyed Cetus Guard 21572 | -5/Cetus | Escorted A7 to Cetus Mainframe 21625 | -5/Cetus | Started Cetus Manufacturing Module 21650 | -5/Cetus | Manufactured an Enhanced Grunt 21657 | -5/Cetus | Discovered new exit (range 23) 21675 | -5/Cetus | Manufactured an Enhanced Grunt 21700 | -5/Cetus | Manufactured an Enhanced Grunt 21725 | -5/Cetus | Manufactured an Enhanced Grunt 21725 | -5/Cetus | Spotted Cetus Guard 21725 | -5/Cetus | Spotted Cetus Guard 21725 | -5/Cetus | Spotted Cetus Guard 21725 | -5/Cetus | Spotted Cetus Guard 21728 | -5/Cetus | Discovered exit to Factory (range 24) 21742 | -5/Cetus | Allies destroyed Cetus Guard 21750 | -5/Cetus | Manufactured an Enhanced Grunt 21762 | -5/Cetus | Allies destroyed Cetus Guard 21766 | -5/Cetus | Allies destroyed Cetus Guard 21776 | -5/Cetus | Met Revision 17 21797 | -5/Cetus | System corruption reached 10% 21872 | -5/Cetus | Identified exit to Archives 21880 | -5/Cetus | Entered Archives 21880 | -5/Archives | Accompanied by 13 allies (A7) 21885 | -5/Archives | Received a hacking code to weaken MAIN.C 21923 | -5/Archives | Discovered new exit (range 23) 21947 | -5/Archives | Lost 7 allies 22049 | -5/Archives | Discovered exit to Factory (range 18) 22055 | -5/Archives | Discovered new exit (range 15) 22189 | -5/Archives | Build established: Scavenger-Skirmisher 22402 | -5/Archives | Identified exit to Hub_04(d) 22500 | -5/Archives | Entered Hub_04(d) 22500 | -5/Hub_04(d) | Accompanied by 5 allies 22663 | -5/Hub_04(d) | Garrison activated, responded to threat 22800 | -5/Hub_04(d) | First assault squad dispatched 23240 | -5/Hub_04(d) | Build established: Hacker-Skirmisher 23491 | -5/Hub_04(d) | Found Exp. Thermal Shield 23507 | -5/Hub_04(d) | Network Hub disabled 23511 | -5/Hub_04(d) | Spotted Lightning 23512 | -5/Hub_04(d) | Spotted Lightning 23516 | -5/Hub_04(d) | Spotted Lightning 23516 | -5/Hub_04(d) | Spotted Lightning 23538 | -5/Hub_04(d) | Core integrity fell below 50% 23544 | -5/Hub_04(d) | Crushed by falling debris 23549 | -5/Hub_04(d) | Entered Factory 23549 | -4/Factory | Evolved 2 slots: Power x1, Propulsion x1 23575 | -4/Factory | Lost 4 parts (1n3u) 23580 | -4/Factory | Found Quantum Capacitor 24196 | -4/Factory | Build established: Scavenger-Gunner 24293 | -4/Factory | Identified exit to Upper Caves 24293 | -4/Factory | Identified exit to Research 24309 | -4/Factory | Spotted B-86 Titan 24382 | -4/Factory | Entered Upper Caves 24383 | -4/Upper Caves | Encountered a Warlord checkpoint 24826 | -4/Upper Caves | Build established: Scavenger-Skirmisher 25148 | -4/Upper Caves | Discovered new exit (range 11) 25199 | -4/Upper Caves | Found Alien Artifact 25214 | -4/Upper Caves | Entered another Upper Caves area 25238 | -4/Upper Caves | Encountered a Warlord checkpoint 25645 | -4/Upper Caves | Discovered exit to Research (range 6) 25742 | -4/Upper Caves | Build established: Hauler-Skirmisher 26929 | -4/Upper Caves | Discovered new exit (range 16) 27078 | -4/Upper Caves | Entered Warlord 27214 | -4/Warlord | System corruption cleaned by Quarantine Array 27276 | -4/Warlord | Build established: Hauler-Tank 27448 | -4/Warlord | System corruption cleaned by Quarantine Array 27739 | -4/Warlord | Build established: Hauler-Mutant 27837 | -4/Warlord | Found Prototype Special Weapon 27837 | -4/Warlord | Identified RU-N14's Throwing Claymores v3 27841 | -4/Warlord | Found RU-N14's Throwing Claymores v3 27845 | -4/Warlord | Found RU-N14's Throwing Claymores v3 27848 | -4/Warlord | Found RU-N14's Throwing Claymores v3 27852 | -4/Warlord | Found RU-N14's Throwing Claymores v3 27855 | -4/Warlord | Found RU-N14's Throwing Claymores v3 28175 | -4/Warlord | Found Prototype Device 28378 | -4/Warlord | Warlord's base attacked by MAIN.C 28456 | -4/Warlord | Build established: Hauler-Skirmisher 28612 | -4/Warlord | Found Prototype Launcher 28620 | -4/Warlord | Found Prototype Energy Gun 28623 | -4/Warlord | Found Prototype Energy Gun 28728 | -4/Warlord | Warlord forces counterattacked 28795 | -4/Warlord | Spotted Executioner 28820 | -4/Warlord | Spotted Executioner 28821 | -4/Warlord | Spotted Executioner 28893 | -4/Warlord | Lost 19 allies 28975 | -4/Warlord | Rebuked by Warlord 29010 | -4/Warlord | Found Prototype Reactor 29019 | -4/Warlord | Found Prototype Processor 29019 | -4/Warlord | Identified Exp. Targeting Computer 29031 | -4/Warlord | Found Prototype Hackware 29040 | -4/Warlord | Found Prototype Device 29040 | -4/Warlord | Identified Thermal Barrier 29053 | -4/Warlord | Warlord base infiltrated, sounded retreat 29142 | -4/Warlord | Build established: Hauler-Gunner 29225 | -4/Warlord | Discovered new exit (range 21) 29226 | -4/Warlord | Spotted Striker 29278 | -4/Warlord | Spotted Striker 29278 | -4/Warlord | Entered Proximity Caves 29628 | -3/Proximity Caves | Build established: Hauler-Skirmisher 30482 | -3/Proximity Caves | Discovered exit to Research (range 7) 31311 | -3/Proximity Caves | Attracted the attention of an 0b10 checkpoint 31855 | -3/Proximity Caves | Entered Research 31855 | -3/Research | Evolved 2 slots: Utility x2 31856 | -3/Research | Identified exit to Armory 31857 | -3/Research | Loaded intel: 94 machine locations 31858 | -3/Research | Loaded intel: 44 interactive machine locations 31859 | -3/Research | Identified Wardrone Bay 32000 | -3/Research | Identified System Mapper 32055 | -3/Research | Revision forces began assault on 0b10 32072 | -3/Research | Met up with Revision 17++ 32177 | -3/Research | Found Exp. Sensor Array 32181 | -3/Research | Found Prototype Processor 32181 | -3/Research | Identified Exp. Melee Analysis Suite 32187 | -3/Research | Found Exp. Sensor Array 32416 | -3/Research | Fabricated Arm. Heavy Treads (x1) 32449 | -3/Research | Fabricated Arm. Heavy Treads (x1) 32555 | -3/Research | Research terminal network offline 32685 | -3/Research | Build established: Hauler-Mutant 32836 | -3/Research | Lost 3 allies 32895 | -3/Research | Murdered Revision 17++ 32915 | -3/Research | Spotted Striker 32916 | -3/Research | Entered Armory 33457 | -3/Armory | System corruption reached 10% 33628 | -3/Armory | Spotted B-86 Titan 33774 | -3/Armory | Found Fusion Bomb Launcher 33832 | -3/Armory | Build established: Hauler-Assassin 33994 | -3/Armory | Fabricated O-32 Director? 34363 | -3/Armory | Found Fusion Bomb Launcher 34525 | -3/Armory | Destroyed 8 combat bots 34565 | -3/Armory | Build established: Hauler-Mutant 35063 | -3/Armory | Discovered new exit (range 4) 35094 | -3/Armory | Assisted by bots powering up and referring to "LRC-V3" 35165 | -3/Armory | Discovered new exit (range 6) 35239 | -3/Armory | Lost 4 allies 35332 | -3/Armory | Lost 5 allies 35379 | -3/Armory | Destroyed 8 combat bots 35457 | -3/Armory | First assault squad dispatched 35484 | -3/Armory | Identified Vortex Shotgun (x2) 35485 | -3/Armory | Spotted Armor Guard 35485 | -3/Armory | Spotted Armor Guard 35499 | -3/Armory | Destroyed Armor Guard 35515 | -3/Armory | Destroyed Armor Guard 35550 | -3/Armory | Identified Vortex Chain Reactor 35573 | -3/Armory | Found Prototype Device 35573 | -3/Armory | Identified Exp. Weapon Cycler 35609 | -3/Armory | Found Superdense Plating 35621 | -3/Armory | Crushed by falling debris 35650 | -3/Armory | Spotted Armor Guard 35650 | -3/Armory | Spotted Armor Guard 35688 | -3/Armory | Destroyed Armor Guard 35716 | -3/Armory | Destroyed Armor Guard 35760 | -3/Armory | Destroyed 8 combat bots 35819 | -3/Armory | Breached Obliterator storage 35830 | -3/Armory | Found Disassembled Obliterator 35851 | -3/Armory | Found PL-3XN's Ring of Power 35926 | -3/Armory | Identified Vortex Catalyst Activator 35954 | -3/Armory | Destroyed 14 combat bots 35986 | -3/Armory | Lost 3 parts (1n2w) 36021 | -3/Armory | Build established: Hauler-Skirmisher 36232 | -3/Armory | System corruption reached 30% 36303 | -3/Armory | Entered Lab 36303 | -3/Lab | Discovered new exit (range 9) 36330 | -3/Lab | Entered Research 36330 | -2/Research | Evolved 2 slots: Propulsion x2 36364 | -2/Research | Spotted B-90 Cyclops 36575 | -2/Research | Scrapoid reinforcements arrived 36941 | -2/Research | P-80 Master assimilated allied 02R03-D 37014 | -2/Research | Identified exit to Testing 37077 | -2/Research | Discovered new exit (range 10) 37130 | -2/Research | Build established: Hauler-Assassin 37502 | -2/Research | Found Quantum Capacitor 37505 | -2/Research | Found Quantum Capacitor 37508 | -2/Research | Found Quantum Capacitor 37515 | -2/Research | Found Quantum Capacitor 37580 | -2/Research | First assault squad dispatched 37600 | -2/Research | Entered Testing 37616 | -2/Testing | Found Prototype Energy Cannon 37616 | -2/Testing | Identified Imp. Potential Cannon 37714 | -2/Testing | Found Prototype Device 37714 | -2/Testing | Identified Exp. ECM Suite 37837 | -2/Testing | Found Prototype Launcher 37837 | -2/Testing | Identified Enh. Gamma Bomb Array 37864 | -2/Testing | Build established: Hauler-Gunner 37956 | -2/Testing | Found Prototype Protection 37956 | -2/Testing | Identified SHELL Armor 37962 | -2/Testing | Found Prototype Protection 37962 | -2/Testing | Identified Med. Regenerative Plating 37975 | -2/Testing | Found Prototype Protection 38262 | -2/Testing | Spotted Striker 38262 | -2/Testing | Spotted Striker 38314 | -2/Testing | System corruption reached 10% 38609 | -2/Testing | Repaired Adv. Particle Charger 38699 | -2/Testing | Repaired Exp. Heat Sink 39306 | -2/Testing | Discovered new exit (range 13) 39357 | -2/Testing | Found Prototype Device 39368 | -2/Testing | Identified Exp. Focal Shield 39368 | -2/Testing | Identified Hvy. Regenerative Plating 39368 | -2/Testing | Identified Dimensional Node Initializer 39500 | -2/Testing | Spotted PY-IPT9ZVKZO8 39514 | -2/Testing | Found Prototype Launcher 39514 | -2/Testing | Identified Tactical Quantum Warhead 39520 | -2/Testing | Found Prototype Processor 39573 | -2/Testing | Rewired PY-IPT9ZVKZO8 39776 | -2/Testing | Found Prototype Energy Gun 39776 | -2/Testing | Identified Hyp. EM Gauss Rifle 39858 | -2/Testing | Entered Access 39858 | -1/Access | Accompanied by 1 ally 39858 | -1/Access | Evolved 2 slots: Power x1, Utility x1 40545 | -1/Access | Build established: Hauler-Mutant 40861 | -1/Access | Build established: Hauler-Tank 41146 | -1/Access | First assault squad dispatched 41481 | -1/Access | Build established: Hauler-Gunner 41575 | -1/Access | Spotted B-99 Colossus 41575 | -1/Access | Spotted B-99 Colossus 41658 | -1/Access | Energy Cycler disabled 41726 | -1/Access | Discovered new exit (range 5) 41764 | -1/Access | Identified Exp. Target Analyzer 41982 | -1/Access | High security lockdown imminent 42006 | -1/Access | Destroyed 7 combat bots 42062 | -1/Access | High security lockdown engaged 42152 | -1/Access | Spotted Executioner 42155 | -1/Access | Destroyed Executioner 42181 | -1/Access | System corruption reached 10% 42216 | -1/Access | Destroyed 20 combat bots 42276 | -1/Access | Spotted Investigator 42276 | -1/Access | Destroyed Investigator 42315 | -1/Access | Destroyed 13 combat bots 42419 | -1/Access | Spotted Investigator 42420 | -1/Access | Scanned by Researcher 42422 | -1/Access | Destroyed Investigator 42459 | -1/Access | Destroyed 36 combat bots 42466 | -1/Access | Sterilization system engaged 42542 | -1/Access | Found Prototype Launcher 42542 | -1/Access | Identified Containment Facilitator 42766 | -1/Access | Ambient heat levels rising (+10) 42916 | -1/Access | Ambient heat levels rising (+10) 43066 | -1/Access | Ambient heat levels rising (+10) 43121 | -1/Access | Spotted B-99 Colossus 43216 | -1/Access | Ambient heat levels rising (+10) 43366 | -1/Access | Ambient heat levels rising (+10) 43516 | -1/Access | Ambient heat levels rising (+10) 43666 | -1/Access | Ambient heat levels rising (+10) 43816 | -1/Access | Ambient heat levels rising (+10) 43966 | -1/Access | Ambient heat levels rising (+10) 44040 | -1/Access | Released all parts (18) 44067 | -1/Access | Core integrity fell below 50% 44068 | *** | Escaped! Last Messages --------------- 44043_ Overheating: Matter decay (-51). 44044_ Overheating: Core damaged (-288). 44044_ Acquired 115 matter. 44046_ Core heat damage averted by Adv. Cryofiber Web. 44047_ Overheating: Matter decay (-57). 44047_ Acquired 57 matter. 44049_ System corrupted: Matter fused (-10). 44050_ Overheating: Core damaged (-208). 44051_ Overheating: Adv. Cryofiber Web damaged (-19). 44052_ Acquired 10 matter. 44053_ Adv. Cryofiber Web broken. 44053_ Overheating: Short circuit. 44056_ Overheating: Matter decay (-60). 44057_ Overheating: Energy bleed (-10). 44059_ Overheating: Broken Adv. Cryofiber Web damaged (-7). 44060_ Overheating: Energy bleed (-8). 44061_ Overheating: Matter decay (-38). 44066_ Overheating: Energy bleed (-12). 44066_ System corrupted: Component data lost. 44067_ Overheating: Core damaged (-208). Map ----- +----------------------------------------------------+ | # #????#?#?## ?? ????# ## | | # #?????#?? #???? # ?? " | | %+ ##???##?# ? ????? ????# | | # ###?#### ? ? #? ?#???# | | ## #### ## ### ??##?# | | ## ## # #### ### | | ## # # # ## # # ### % | | ## # ## ## # | | ################ # ## # # # | | " #?##### = ## ## ## ### ############ | | ""#####"#################### # ############### | | %% % | | % = | | """" #####" #### #####+########## # | | ""#" ##?#########"#=# # # ## | | #%##?# ### ## ### | | # #### # # ## #?# | | + # # # # ## | | # # """ %# # ### ## | | #### # "" = #;# ### ##" | | # """ # # ##" | | #! """ # # # # ##" | | # """"" # # ##############""" | | + """" # # #? ##??#?######"""" | | # # # #??##???## | | # ### @" #????????# | | + ### "" ##??#?#??# | | ### ## #?# #??#??#??# | | # ## ! #?# #????????# | | # # ## #?# #??#####?# ##### | | ### ## #?#""""""""""#?? ## #??## % | | ??# ############???"??????"???## +#???# " | | ??# ######""####??"?????"?????# ##??#" | | ?## #=* #??????????"??## #####""" | | ??# #*[ #????????? ????# # | | ??# # #?# ? ?????# # | | ??# #! #??? ????# + | | ??# # #?? ? ????# # | | ??# # #???? ? #?# # % | | ??# + #???? ???# # | | ??# % # " #?? ? ????# # ## | | ??# # """ #??#?# #????#######+## # | | ### # """ #????# #??#?????### + | | ### # " #????# #??????????# # | | " ###############?# ############+## #* | | * #% #??# ??# # ## # | | # #??# ?? # #! ######## | | # #??# ???# # #??????# | | # #??# ? # # #?#????# | | # #?## " ?? # # ##?????## | +----------------------------------------------------+ Best States ------------- Heat Dissipation 156 Coolant Potential 100 Energy Generation 77 Energy Capacity 1300 Matter Stores 300 Matter Capacity 300 Sight Range 24 Robot Scan Range 20 Terrain Scan Range 24 Terrain Scan Density 10 ECM Strength 1 Jamming Range 12 Additional Mass Support 20 Base Temperature (-) 200 Armor Coverage 3200 Resistance: KI 30 Resistance: TH 50 Propulsion Shielding 66 Weapon Shielding 66 Weapon Cycling 30 Evasion (%) 62 Targeting Accuracy 32 Melee Accuracy 5 Core Analysis 6 Armor Integrity Analysis 40 Recoil Reduction 6 Energy Filtering 50 Particle Charging 25 Offensive Hacking 50 Defensive Hacking 12 Authchip Count 10 Trap Extractor Capacity 8 Item Schematics ----------------- Quantum Capacitor | -6/Factory | Hacked Magnetic Acceleration Cannon | -6/Zion | Archive Imp. Recalibrator | -6/Zion | Archive Adv. Sensor Array | -6/Zion | Archive Lrn. Tractor Beam | -6/Zion | Archive Remote Shield | -6/Zion | Archive Antigrav System | -6/Zion | Archive Adv. Heat Sink | -6/Zion | Archive Adv. Shield Generator | -6/Zion | Archive Imp. Actuator Array | -6/Zion | Archive Drone Bay | -6/Zion | Archive Hardcell Cannon | -6/Zion | Archive Imp. Coolant Injector | -6/Zion | Archive Imp. Antigrav System | -6/Zion | Archive Force Field | -6/Zion | Archive Imp. Component Analysis Suite | -6/Zion | Archive Battle Cannon | -6/Zion | Free Beamcaster | -6/Zion | Free Barrage Gun | -6/Zion | Free Energy Deflector | -5/Proximity Caves | Extrapolated Spk. Medium Treads | -5/Proximity Caves | Extrapolated Spk. Treads | -5/Proximity Caves | Extrapolated Mak. Coolant Network | -5/Proximity Caves | Extrapolated Spk. Heavy Treads | -5/Proximity Caves | Extrapolated Mak. Thermal Plating | -5/Factory | Extrapolated Hvy. Battle Rifle | -5/Factory | Extrapolated Bore Cannon | -5/Factory | Extrapolated Hvy. Machine Gun | -5/Factory | Extracted Power Maul | -5/Factory | Extracted Machine Analyzer | -5/Factory | Extracted Arm. Heavy Treads | -5/Factory | Hacked Imp. Hacking Suite | -4/Factory | Scanalyzed Tiamat Missile Launcher | -4/Factory | Scanalyzed Robot Schematics ------------------ A-15 Conveyor | -6/Zion | Archive E-15 Imp | -6/Zion | Archive A-02 Transporter | -6/Zion | Archive X-82 Rainmaker | -6/Zion | Archive Fabricated ------------ Quantum Capacitor | x2 | -5/Factory X-82 Rainmaker | x2 | -5/Factory Arm. Heavy Treads | x1 | -3/Research | Authchip Arm. Heavy Treads | x1 | -3/Research O-32 Director | x1 | -3/Armory | Preloaded Alien Tech Used ----------------- None Achievements -------------- None Challenges ------------ None Game ------ Seed CompanionSalvagingTerminator Manual? 0 Play Time 06:32:33 Cumulative 356.2 hours Start 2024.10.28 @ 17:07:33 End 2024.11.02 @ 20:33:16 Sessions 9 Manual Loads 0 Difficulty Rogue Special Mode None Game No. 174 Rogue 174 Adventurer 0 Explorer 0 Win Type 0 Total 11 Types 6/1/4/0/0/0/0/0/0 Lore% 86 Gallery% 89 Achievement% 73 Wizard Run 0 Options --------- Layout 0 ASCII 0 Keyboard 0 Movement Mouse Keybinds 0 Fullscreen 2 Font 12/Smallcaps Map View 83x54 Zoom Use 0% Tactical HUD 1 Map Filters NONE Filters NONE Steam 1 RUN: 43499252-6239-4212-9c80-e0cd7374450e